bitfinex/quotes_ETHUSD_20220220
["timestamp","ask_amount","ask_price","bid_price","bid_amount"]
[1645373874639,0.1872,2671.2,2670.2,0.93665]
[1645373874840,0.25,2671.3,2670.2,0.93665]
[1645373875040,0.25,2671.3,2670.4,5.0]
[1645373875239,0.25,2671.3,2670.5,0.1872]
[1645373875438,0.25,2671.3,2670.5,1.3]
[1645373875741,3.5,2672.0,2670.7,1.8725147]
[1645373875742,1.18907847,2671.9,2670.7,1.8725147]
[1645373876102,3.5,2672.2,2670.8,0.487]
[1645373876291,1.59063946,2672.1,2671.0,2.17258]
[1645373876594,1.59063946,2672.1,2671.1,0.3]
[1645373876887,1.59063946,2672.1,2671.1,1.23626]
[1645373877088,1.13550983,2672.0,2671.5,1.18556231]
[1645373877491,0.00233279,2671.7,2671.6,0.93625]
[1645373878288,1.69617586,2672.3,2671.6,0.93625]
[1645373878792,0.00233276,2671.8,2671.6,1.93625]
[1645373879193,0.00360764,2671.8,2671.6,1.93625]
[1645373879590,0.00127488,2671.8,2671.6,1.93625]
[1645373879840,0.00360762,2671.8,2671.6,1.93625]
[1645373880838,0.00127488,2671.8,2671.6,1.93625]
[1645373881239,0.00360762,2671.8,2671.6,1.93625]
[1645373881642,3.80360762,2671.8,2671.6,1.93625]
[1645373882048,3.80127488,2671.8,2671.6,1.93625]
[1645373882240,3.80360762,2671.8,2671.6,1.93625]
[1645373882442,3.80360762,2671.8,2671.6,2.23625]
[1645373883341,3.80127488,2671.8,2671.6,2.23625]
[1645373884395,3.79182938,2671.8,2671.6,3.6591849]
[1645373884592,0.00233587,2671.8,2671.7,12.0]
[1645373884795,0.00390365,2673.2,2671.8,21.507]
[1645373885097,0.00390365,2673.4,2672.0,1.87151]
[1645373885291,1.77708222,2673.6,2672.1,0.487]
[1645373885292,1.59008222,2673.5,2672.1,0.487]
[1645373885594,0.00390365,2673.4,2673.0,0.88669268]
[1645373885794,0.00390365,2673.6,2673.1,0.9357]
[1645373885992,0.00390365,2673.7,2673.1,0.9357]
[1645373886191,0.00390365,2673.8,2673.1,0.9357]
[1645373886592,0.00390365,2673.8,2673.6,1.16778688]
[1645373886794,0.00390365,2674.1,2673.5,0.4077219]
[1645373888041,0.00390365,2674.1,2673.4,0.90313761]
[1645373888843,0.00390365,2674.1,2673.4,0.85313761]
[1645373889044,0.00390365,2674.1,2673.5,0.93551]
[1645373889247,0.00390365,2674.1,2673.6,0.3]
[1645373889448,0.00233689,2673.9,2673.6,0.3]
[1645373889843,0.00233689,2673.9,2673.6,1.3]
[1645373890041,0.00934618,2674.3,2673.7,1.87059]
[1645373890243,0.00934618,2674.3,2674.0,0.88881237]
[1645373890543,0.00390365,2674.5,2674.0,1.18881237]
[1645373890749,1.12859687,2674.6,2674.0,1.18881237]
[1645373890941,1.12859687,2674.6,2674.0,0.3]
[1645373891190,1.12859687,2674.6,2673.7,2.17059]
[1645373891391,1.12859687,2674.6,2673.8,1.0]
[1645373891591,1.12859687,2674.6,2674.0,1.87062]
[1645373892992,3.5,2674.5,2673.7,1.87059]
[1645373893193,3.5,2674.5,2673.4,1.871]
[1645373893194,0.00390365,2674.4,2673.4,1.871]
[1645373893392,0.00390365,2674.4,2673.1,0.93574]
[1645373894190,0.93341031,2673.5,2673.1,0.93574]
[1645373894692,0.93341031,2673.5,2672.7,0.93586]
[1645373894950,0.93731396,2673.5,2672.7,0.93586]
[1645373896744,0.93731396,2673.5,2672.7,1.23586]
[1645373897344,0.00390365,2673.5,2673.1,0.91659936]
[1645373897551,0.00934712,2673.8,2673.1,0.91659936]
[1645373897552,0.00390365,2673.8,2673.1,2.45223936]
[1645373897747,0.00390365,2674.0,2673.3,1.87107]
[1645373897944,0.00934712,2673.8,2673.4,0.3]
[1645373898145,0.00934712,2673.8,2673.3,1.87107]
[1645373898345,0.00163277,2674.5,2673.7,1.09211245]
[1645373898346,1.08124901,2674.3,2673.7,1.09211245]
[1645373898609,0.00163277,2674.5,2673.7,1.09211245]
[1645373899403,0.2515761,2675.0,2673.7,1.09211245]
[1645373899807,0.4384761,2675.0,2673.7,1.09211245]
[1645373900004,0.86794947,2674.9,2674.3,0.98494788]
[1645373900210,0.86794947,2674.9,2673.7,2.80616]
[1645373901305,0.86794947,2674.9,2674.0,0.8652505]
[1645373901507,0.86794947,2674.9,2674.2,0.93536]
[1645373902642,0.00233948,2674.7,2674.2,0.93536]
[1645373903639,0.2515761,2675.0,2674.2,0.93536]
[1645373903839,0.0015761,2675.0,2674.2,0.93536]
[1645373904044,0.00233953,2674.6,2674.2,0.93536]
[1645373904240,0.00233953,2674.6,2674.2,1.23536]
[1645373904442,0.00233953,2674.6,2674.2,1.53536]
[1645373904851,3.8,2674.7,2674.2,1.53536]
[1645373905041,0.00233956,2674.5,2674.2,1.72226]
[1645373905242,0.00233956,2674.5,2674.4,1.15150918]
[1645373905641,0.00233956,2674.5,2674.4,1.45150918]
[1645373905841,0.00233956,2674.5,2674.4,1.75150918]
[1645373906106,3.8,2674.7,2674.4,1.75150918]
[1645373906295,0.00233953,2674.6,2674.4,3.62182918]
[1645373906696,0.00233953,2674.6,2674.4,0.17537342]
[1645373906899,0.00233953,2674.6,2674.1,0.1869]
[1645373907099,3.75233953,2674.7,2673.8,0.1869]
[1645373907299,3.75233953,2674.7,2673.7,1.87054]
[1645373907602,0.0023395,2674.6,2673.7,1.87288031]
[1645373908002,0.0023395,2674.6,2674.1,1.00306218]
[1645373908201,0.0023395,2674.6,2674.1,2.23828218]
[1645373908399,3.75233953,2674.7,2674.1,2.53828218]
[1645373908699,3.75233953,2674.7,2674.3,1.87032]
[1645373909100,0.00163277,2674.5,2674.3,1.87032]
[1645373910243,0.00163277,2674.5,2674.4,0.3]
[1645373910839,0.00163277,2674.5,2674.4,1.2351]
[1645373911240,0.00163277,2674.5,2674.4,1.9351]
[1645373911440,0.00163277,2674.5,2674.3,1.87032]
[1645373911741,0.00163277,2674.5,2674.3,2.87032]
[1645373912940,0.00163277,2674.5,2674.3,3.17032]
[1645373913343,0.00163277,2674.5,2674.4,0.93509]
[1645373913600,0.00163277,2674.5,2674.4,1.93509]
[1645373913796,3.7585315,2674.7,2674.4,1.93509]
[1645373914004,3.65752808,2674.7,2674.5,5.0]
[1645373914203,0.00385259,2675.3,2674.7,15.0]
[1645373914404,0.00385259,2675.3,2674.8,1.86963]
[1645373914600,0.00385259,2675.5,2674.9,0.3]
[1645373914799,0.01788139,2675.1,2675.0,1.86961]
[1645373915001,0.98687012,2675.8,2675.3,0.99313491]
[1645373915600,0.00385259,2675.9,2675.3,0.99313491]
[1645373916305,3.5696,2676.8,2675.8,0.93432]
[1645373916306,0.1867,2676.8,2675.8,0.93432]
[1645373916502,3.5,2677.4,2675.9,0.93433]
[1645373916704,0.91972144,2676.5,2675.9,0.96514221]
[1645373916901,0.86972144,2676.5,2675.5,3.73725]
[1645373917344,3.5,2676.4,2675.8,0.93475]
[1645373917546,3.8,2675.9,2675.8,0.93475]
[1645373917744,3.8,2675.9,2675.5,3.73725]
[1645373917944,1.1555382,2675.8,2675.5,3.73725]
[1645373918743,3.8,2675.9,2675.6,4.5]
[1645373918949,0.1867,2676.5,2675.6,5.43464]
[1645373919246,0.25,2676.7,2675.6,1.93464]
[1645373919444,0.25,2676.7,2675.6,1.12134]
[1645373919645,0.00233832,2675.9,2675.6,2.12134]
[1645373919849,0.00233832,2675.9,2675.7,1.15349251]
[1645373920248,0.00233832,2675.9,2675.7,2.15349251]
[1645373920450,0.25,2676.7,2675.9,0.93458]
[1645373920645,0.04442086,2676.3,2675.9,0.93458]
[1645373921697,3.8383,2677.2,2675.9,0.93458]
[1645373921698,4.554131,2677.2,2675.9,0.93458]
[1645373922001,0.00233813,2676.2,2676.0,4.4346]
[1645373922199,0.00233813,2676.2,2676.0,0.9346]
[1645373922898,1.12431122,2676.7,2676.0,0.9346]
[1645373923200,0.00233813,2676.2,2675.9,0.93458]
[1645373923598,0.00233813,2676.2,2675.9,1.86922]
[1645373923998,1.12431122,2676.7,2675.9,2.86922]
[1645373924200,0.1867,2677.1,2676.0,5.66901]
[1645373924401,0.04018085,2676.6,2676.1,1.0]
[1645373924600,0.25,2677.2,2676.2,5.3686323]
[1645373924845,1.58796801,2677.1,2676.3,1.0]
[1645373925044,1.58796801,2677.1,2676.5,0.9344]
[1645373925248,0.15,2677.2,2676.6,3.5]
[1645373925453,0.9235577,2677.8,2676.8,1.86832]
[1645373925454,0.2077267,2677.8,2676.8,1.86832]
[1645373925652,0.2077267,2677.8,2677.0,11.53242088]
[1645373925846,0.00844028,2678.2,2677.2,11.52]
[1645373926053,0.95444133,2678.6,2677.4,0.93366]
[1645373926250,0.70212342,2678.6,2677.4,0.93366]
[1645373926450,0.70212342,2678.4,2677.4,0.93366]
[1645373926648,0.98711404,2678.1,2677.5,1.13837931]
[1645373926848,0.88882342,2678.7,2677.6,0.93396]
[1645373926849,0.1867,2678.7,2677.6,0.93396]
[1645373927047,0.88882342,2678.7,2677.8,0.93401]
[1645373927749,0.1867,2678.7,2677.8,0.93401]
[1645373927948,0.00233556,2678.4,2677.2,4.82354568]
[1645373928353,0.00233556,2678.4,2677.7,0.93404]
[1645373928607,0.00233556,2678.4,2677.8,2.80165]
[1645373928795,3.9867,2678.7,2677.8,2.80165]
[1645373928996,0.89346845,2678.1,2677.8,2.80165]
[1645373929395,0.00233567,2678.2,2677.8,2.80165]
[1645373929995,0.04437115,2678.6,2677.8,1.86777]
[1645373930196,3.9867,2678.7,2677.8,1.86777]
[1645373930395,1.0250079,2678.1,2677.8,1.86777]
[1645373931201,1.0250079,2678.1,2677.7,0.93404]
[1645373931202,1.0226722,2678.1,2677.7,0.93404]
[1645373931397,1.0226722,2678.1,2677.2,1.86815]
[1645373931398,1.3226722,2678.1,2677.2,1.86815]
[1645373931600,1.3226722,2678.1,2677.1,0.1937]
[1645373931601,0.19051172,2678.0,2677.1,0.1937]
[1645373931796,0.19051172,2678.0,2676.2,0.1867]
[1645373931797,16.71051172,2678.0,2676.2,0.1867]
[1645373931997,11.52,2677.8,2675.9,3.5]
[1645373932198,1.17915186,2676.6,2675.9,4.3705637]
[1645373932447,1.18296358,2676.6,2675.9,4.3705637]
[1645373932646,0.00381172,2676.6,2675.9,4.5572637]
[1645373932946,0.25,2677.1,2676.1,0.93458]
[1645373933145,0.00381172,2677.0,2676.1,0.93458]
[1645373933646,1.05780231,2676.9,2676.1,0.93458]
[1645373933849,0.00381172,2676.8,2676.1,0.93458]
[1645373934246,0.25,2677.1,2676.1,0.93458]
[1645373934247,0.00381172,2677.0,2676.1,0.93458]
[1645373934646,0.00381172,2677.0,2676.0,0.1867]
[1645373934854,0.00381172,2677.0,2675.9,0.8705637]
[1645373935044,0.88852877,2676.7,2675.9,0.8705637]
[1645373935248,0.00381172,2676.6,2675.9,0.8705637]
[1645373936295,0.00381172,2676.6,2676.1,0.0023369]
[1645373936498,0.89467687,2676.7,2676.1,0.0023369]
[1645373937102,12.41467687,2676.7,2676.1,0.0023369]
[1645373937303,12.41467687,2676.7,2675.2,3.68622]
[1645373937304,1.00379988,2675.5,2675.3,3.5]
[1645373937503,11.52381172,2676.7,2675.0,4.2633]
[1645373937504,18.4064,2676.6,2675.0,4.2633]
[1645373937701,0.00381172,2676.5,2676.3,0.00233682]
[1645373937999,3.9018,2676.6,2676.3,0.00233682]
[1645373938201,15.55999997,2676.6,2676.3,0.00233682]
[1645373938402,4.03999997,2676.6,2675.1,3.5]
[1645373938604,0.00381172,2676.5,2675.1,3.5]
[1645373938803,0.1867,2676.4,2675.1,3.5]
[1645373939005,0.1867,2676.4,2676.3,0.00233679]
[1645373939200,0.1867,2676.5,2676.3,0.00233679]
[1645373939602,1.09434813,2676.4,2675.8,1.09430573]
[1645373939853,1.0981589,2676.4,2675.2,1.0]
[1645373940051,1.0981589,2676.4,2676.3,0.00233682]
[1645373940256,1.09434813,2676.4,2676.3,0.00233682]
[1645373940554,3.8,2676.4,2676.3,3.682e-05]
[1645373940950,3.8,2676.4,2675.1,0.1867]
[1645373940951,0.00381077,2676.3,2675.1,0.1867]
[1645373941555,1.06572384,2675.9,2675.2,1.07042911]
[1645373941752,1.06953461,2675.9,2675.3,0.1867]
[1645373942150,0.00381077,2675.9,2675.3,0.1867]
[1645373942354,0.00381077,2676.3,2675.3,0.1867]
[1645373943354,0.91505222,2676.2,2675.2,1.07042911]
[1645373943604,0.00381077,2676.1,2675.2,1.07042911]
[1645373944205,3.8,2676.4,2675.2,1.37042911]
[1645373944402,3.8,2676.4,2675.3,2.80384]
[1645373944601,3.8,2676.4,2675.4,1.4867]
[1645373944801,3.8,2676.4,2675.5,0.00233724]
[1645373945000,3.8,2676.4,2675.6,0.1867]
[1645373945205,1.58790418,2676.3,2675.6,0.1867]
[1645373945403,3.8,2676.4,2675.7,0.88219567]
[1645373945404,4.96791271,2676.4,2675.7,0.88219567]
[1645373946101,4.96791271,2676.4,2675.8,0.00233707]
[1645373946501,4.93858022,2676.4,2675.8,0.00233707]
[1645373947104,4.93858022,2676.4,2676.0,0.00233699]
[1645373947550,3.77066751,2676.4,2676.0,0.00233699]
[1645373948247,3.77066751,2676.4,2675.5,0.1867]
[1645373948448,3.77066751,2676.4,2676.1,0.00233693]
[1645373949247,3.77066751,2676.4,2675.8,0.3]
[1645373949452,3.77066751,2676.4,2675.8,1.45861377]
[1645373949648,3.77066751,2676.4,2676.1,0.0023369]
[1645373950550,3.77066751,2676.4,2675.8,0.3]
[1645373950752,3.77066751,2676.4,2676.1,0.0023369]
[1645373951213,0.0032927,2675.9,2675.4,1.0]
[1645373951414,0.0032927,2675.9,2675.3,2.06692]
[1645373951415,0.0032927,2675.9,2675.3,0.1977]
[1645373951612,0.0032927,2675.9,2675.3,1.33007123]
[1645373953312,0.0032927,2675.9,2675.5,0.00233726]
[1645373954115,0.0032927,2675.9,2675.4,0.93472]
[1645373954313,0.0032927,2675.9,2675.4,1.93472]
[1645373954516,0.0032927,2675.9,2675.6,0.00233721]
[1645373955351,0.0032927,2675.9,2675.4,1.0]
[1645373955549,0.0032927,2675.9,2675.6,0.00233718]
[1645373956152,0.0032927,2675.9,2675.7,0.93463]
[1645373956652,0.0032927,2675.9,2675.4,1.0]
[1645373956851,0.0032927,2675.9,2675.7,0.00233715]
[1645373957652,0.0032927,2675.9,2675.4,1.6]
[1645373957858,0.0032927,2675.9,2675.4,1.3]
[1645373958051,0.0032927,2675.9,2675.7,0.00233715]
[1645373958797,1.54127883,2676.3,2675.7,0.00233715]
[1645373958999,1.54127883,2676.3,2675.4,1.0]
[1645373959200,1.54127883,2676.3,2675.7,0.00233715]
[1645373959601,1.54505545,2676.3,2675.7,0.00233715]
[1645373960198,1.54505545,2676.3,2675.4,1.0]
[1645373960399,1.54505545,2676.3,2675.9,0.00233704]
[1645373961398,1.54505545,2676.3,2675.4,4.5]
[1645373961603,1.54505545,2676.3,2676.0,0.00233699]
[1645373961798,1.54127883,2676.3,2676.0,0.00233699]
[1645373962446,1.54127883,2676.3,2675.4,4.5]
[1645373962644,0.00377662,2676.2,2675.4,1.0]
[1645373962846,0.00377662,2676.2,2676.0,0.002337]
[1645373963044,1.54127883,2676.3,2676.0,0.002337]
[1645373963649,1.54127883,2676.3,2675.4,1.0]
[1645373963948,1.54127883,2676.3,2676.0,0.002337]
[1645373963949,0.00377662,2676.2,2676.0,0.002337]
[1645373964248,1.54127883,2676.3,2676.0,0.002337]
[1645373964850,1.54127883,2676.3,2675.4,1.0]
[1645373965047,0.00377662,2676.2,2675.4,1.0]
[1645373965247,0.00377662,2676.2,2676.0,0.002337]
[1645373965447,1.54127883,2676.3,2676.0,0.002337]
[1645373966105,1.54127883,2676.3,2675.4,4.5]
[1645373966297,0.00377662,2676.2,2676.0,0.002337]
[1645373966496,1.54127883,2676.3,2676.0,0.002337]
[1645373967100,0.1867,2676.2,2676.0,0.002337]
[1645373967299,0.1867,2676.2,2675.0,0.93488]
[1645373967504,0.00377662,2676.1,2675.0,0.93488]
[1645373967698,0.1867,2676.3,2675.0,0.925917]
[1645373967699,0.19047662,2676.3,2675.0,0.925917]
[1645373968099,0.8374671,2675.7,2675.0,2.03758968]
[1645373970654,0.8374671,2675.7,2675.0,0.925917]
[1645373970853,0.8374671,2675.7,2674.7,4.4594]
[1645373971049,0.8374671,2675.7,2674.6,4.4132]
[1645373971253,0.8374671,2675.7,2674.6,7.9132]
[1645373971952,0.8374671,2675.7,2674.8,1.17829942]
[1645373972153,0.8374671,2675.7,2674.9,3.5]
[1645373972354,0.44047662,2676.2,2675.0,0.93717751]
[1645373972753,0.25377662,2676.2,2675.0,0.93717751]
[1645373972953,0.95590004,2676.2,2675.0,0.93717751]
[1645373973152,0.25377662,2676.2,2675.0,0.93717751]
[1645373973355,0.25377662,2676.2,2675.0,0.93484]
[1645373973608,0.96258103,2675.7,2675.0,0.93484]
[1645373974798,0.96258103,2675.7,2675.0,0.88484]
[1645373975400,0.96258103,2675.7,2674.6,3.478]
[1645373975602,0.96258103,2675.7,2674.6,3.2913]
[1645373976001,4.76258103,2675.7,2674.6,3.2913]
[1645373976201,4.76258103,2675.7,2674.5,3.10413]
[1645373976400,1.1029928,2675.1,2674.5,3.10413]
[1645373976600,3.8,2675.7,2674.5,1.86983]
[1645373976800,3.8,2675.7,2674.5,6.36983]
[1645373977103,3.8,2675.7,2674.5,2.86983]
[1645373977357,3.8,2675.7,2674.7,0.00233771]
[1645373977553,0.92787542,2675.3,2674.7,0.00233771]
[1645373978156,0.92787542,2675.3,2674.5,2.86983]
[1645373978354,3.8,2675.7,2674.9,0.00233759]
[1645373978954,1.58839478,2675.6,2674.9,0.00233759]
[1645373979354,1.58839478,2675.6,2674.4,0.1867]
[1645373979355,13.10839478,2675.6,2674.4,0.1867]
[1645373979557,0.70212342,2675.4,2675.1,0.00233746]
[1645373979759,0.00333331,2674.9,2674.2,1.0]
[1645373980256,0.00333331,2674.9,2674.0,0.00935383]
[1645373980257,0.00333331,2674.9,2674.0,1.00935383]
[1645373980458,0.00333331,2674.9,2674.4,0.97376661]
[1645373980655,0.00333331,2674.9,2674.1,3.5]
[1645373980954,0.00333331,2674.9,2674.0,1.0]
[1645373981213,0.00333331,2674.9,2673.9,0.1869]
[1645373981405,0.00333331,2674.9,2673.7,1.87036]
[1645373981804,0.00333331,2674.9,2673.9,1.1889701]
[1645373982006,1.59172809,2674.9,2674.3,0.00233793]
[1645373982209,1.58839478,2674.8,2674.3,0.00233793]
[1645373982405,1.58839478,2674.7,2674.3,0.00233793]
[1645373982606,0.00333331,2674.9,2674.3,0.00233793]
[1645373983010,0.97822251,2674.7,2673.9,1.1889701]
[1645373983312,0.97822251,2674.7,2674.4,0.00233787]
[1645373983507,1.58887837,2674.6,2674.4,0.00233787]
[1645373983911,11.52,2674.5,2674.4,0.00233787]
[1645373984106,1.58887837,2674.5,2673.3,0.93545]
[1645373984307,0.97822251,2674.7,2673.3,0.93545]
[1645373984509,18.29589609,2674.6,2674.4,0.00233787]
[1645373984854,2.66015651,2674.5,2674.4,0.00233787]
[1645373985053,2.84705651,2674.5,2674.4,0.00233787]
[1645373985453,2.84705651,2674.5,2673.4,3.5]
[1645373985658,1.58899609,2674.4,2674.3,0.00147717]
[1645373986255,13.10899609,2674.4,2674.3,7.717e-05]
[1645373986458,13.10899609,2674.4,2673.1,3.5]
[1645373986655,11.52,2674.2,2673.0,3.0057]
[1645373986854,1.58899609,2674.1,2673.0,3.0057]
[1645373987064,13.10899609,2674.1,2672.8,1.1906]
[1645373987256,13.10899609,2674.1,2672.9,1.02521543]
[1645373987257,0.99376765,2673.6,2672.9,1.02521543]
[1645373987857,0.187,2674.0,2672.9,1.02521543]
[1645373988056,11.707,2674.0,2672.9,1.02521543]
[1645373988258,11.52,2674.0,2672.9,1.02521543]
[1645373988903,15.32,2674.0,2672.9,1.02521543]
[1645373989103,1.06541605,2673.7,2672.9,1.02521543]
[1645373989301,3.8,2674.0,2672.9,1.02094932]
[1645373989506,3.8,2674.0,2673.0,3.5]
[1645373989709,3.8,2674.0,2673.1,0.93556]
[1645373989902,3.8,2674.0,2673.1,1.93556]
[1645373990303,3.8,2674.0,2673.7,0.95012865]
[1645373990505,3.8,2674.0,2673.4,0.00234113]
[1645373991303,3.8,2674.0,2673.3,1.0]
[1645373991704,3.8,2674.0,2673.6,0.00216495]
[1645373992547,3.8,2674.0,2673.1,1.0]
[1645373992749,3.8,2674.0,2673.0,0.1869]
[1645373992948,3.8,2674.0,2673.7,0.0021649]
[1645373993550,0.97245244,2673.9,2673.7,0.0021649]
[1645373993749,3.8,2674.0,2673.2,1.07615664]
[1645373993953,3.8,2674.0,2673.7,0.00147618]
[1645373994949,3.8,2674.0,2673.2,2.07615664]
[1645373995150,3.8,2674.0,2673.7,0.00147618]
[1645373996204,3.8,2674.0,2673.2,2.07615664]
[1645373996400,3.8,2674.0,2673.7,0.00234343]
[1645373997400,3.8,2674.0,2673.2,2.07615664]
[1645373997401,3.8,2674.0,2673.2,3.01168664]
[1645373997602,3.8,2674.0,2673.7,0.00234343]
[1645373998603,3.8,2674.0,2673.2,2.07615664]
[1645373998810,3.8,2674.0,2673.7,0.00234343]
[1645373999859,3.8,2674.0,2673.2,1.07615664]
[1645374000060,0.87140442,2673.8,2673.7,0.00234343]
[1645374000461,3.8,2674.0,2673.7,0.00234343]
[1645374000661,0.25,2674.4,2673.7,0.00234343]
[1645374000860,0.75859151,2674.5,2673.7,0.00234343]
[1645374001061,0.75859151,2674.5,2673.2,1.07615664]
[1645374001261,0.75859151,2674.5,2673.7,0.00234343]
[1645374001761,1.7761809,2674.4,2673.7,0.00234343]
[1645374001964,1.5892809,2674.3,2673.7,0.00234343]
[1645374002162,0.1869,2674.2,2673.1,3.5]
[1645374002362,0.1869,2674.2,2673.9,0.00234332]
[1645374002660,0.8685272,2673.7,2673.5,0.00937467]
[1645374003460,0.8685272,2673.7,2672.9,3.5]
[1645374003701,0.8685272,2673.7,2672.6,4.7167]
[1645374003904,0.8685272,2673.7,2672.7,3.5]
[1645374004107,0.8685272,2673.7,2672.6,8.2167]
[1645374004304,0.8685272,2673.7,2672.8,2.8651502]
[1645374004504,0.00360863,2673.7,2672.8,2.8651502]
[1645374004905,0.00360863,2673.7,2672.8,2.3651502]
[1645374005308,0.00360863,2673.7,2672.8,3.3651502]
[1645374005507,0.00360863,2673.7,2673.3,0.87961532]
[1645374005708,0.00360863,2673.7,2672.8,2.37107]
[1645374006109,0.00360863,2673.7,2673.1,0.00234376]
[1645374006907,0.00360863,2673.7,2672.8,2.37107]
[1645374007107,0.00360863,2673.7,2672.9,0.95459148]
[1645374007365,0.00360863,2673.7,2673.3,0.00234368]
[1645374008152,0.00360863,2673.7,2672.9,4.45459148]
[1645374008353,0.00360863,2673.7,2673.4,0.00234362]
[1645374009453,0.00360863,2673.7,2672.9,4.45459148]
[1645374009653,0.00360863,2673.7,2673.4,0.00234359]
[1645374010255,1.07233436,2673.5,2673.4,0.00234359]
[1645374010655,1.07233436,2673.5,2672.8,1.37107]
[1645374010854,1.07233436,2673.5,2673.4,0.00234359]
[1645374011708,1.07233436,2673.5,2672.8,1.07280464]
[1645374012109,1.07233436,2673.5,2673.3,0.00234365]
[1645374012912,1.07233436,2673.5,2672.7,1.0]
[1645374013211,1.07233436,2673.5,2673.3,0.00234368]
[1645374014111,1.07233436,2673.5,2672.5,5.92277]
[1645374014313,1.07233436,2673.5,2672.5,2.42277]
[1645374014617,1.07233436,2673.5,2673.3,0.00147476]
[1645374014852,0.55425112,2673.7,2673.3,0.00147476]
[1645374015450,0.55425112,2673.7,2672.5,5.92277]
[1645374015649,0.55425112,2673.7,2673.4,0.0014747]
[1645374016050,1.13364651,2673.5,2673.4,0.0014747]
[1645374016651,1.13364651,2673.5,2672.5,2.42277]
[1645374016851,1.13364651,2673.5,2673.3,0.00234619]
[1645374017255,0.55425112,2673.7,2673.3,0.00234619]
[1645374017658,1.58944527,2673.6,2673.3,0.00234619]
[1645374017857,1.58944527,2673.6,2672.5,6.98407]
[1645374018052,1.58944527,2673.6,2673.4,0.00234617]
[1645374018355,0.55425112,2673.7,2673.4,0.00234617]
[1645374019102,1.58954444,2673.6,2672.7,1.0]
[1645374019307,1.58954444,2673.6,2672.5,2.48407]
[1645374019308,1.58954444,2673.6,2673.4,0.00234614]
[1645374019501,1.59813158,2673.7,2673.4,0.00234614]
[1645374019905,1.58953708,2673.6,2673.4,0.00234614]
[1645374020202,1.58953708,2673.6,2672.8,0.96210383]
[1645374020402,1.58953708,2673.6,2673.4,0.00234614]
[1645374021406,1.58953708,2673.6,2672.8,0.96210383]
[1645374021707,0.55425112,2673.7,2673.4,0.00234617]
[1645374021708,0.00360863,2673.7,2673.4,0.00234617]
[1645374022573,0.00360863,2673.7,2673.5,1.15589192]
[1645374022768,0.00360863,2673.7,2673.5,1.75589192]
[1645374023169,0.00360863,2673.7,2673.5,2.75589192]
[1645374023770,0.00360863,2673.7,2673.5,2.94289192]
[1645374024168,0.00360863,2673.7,2673.5,3.88053803]
[1645374024571,0.00360863,2673.7,2673.6,3.5]
[1645374024776,0.00360863,2673.7,2673.6,0.187]
[1645374024971,0.00360863,2673.7,2673.6,1.487]
[1645374025371,0.00360863,2673.7,2673.6,0.487]
[1645374025570,0.00360863,2673.7,2673.6,1.487]
[1645374025571,0.0024899,2673.7,2673.6,1.487]
[1645374026206,0.0024899,2673.7,2673.6,0.487]
[1645374026407,0.0024899,2673.7,2673.6,1.487]
[1645374026606,0.0024899,2673.7,2673.6,0.3]
[1645374026807,0.0024899,2673.7,2673.6,1.3]
[1645374028111,0.0024899,2673.7,2673.3,1.87074]
[1645374028321,0.0024899,2673.7,2673.1,0.00938574]
[1645374028710,0.0024899,2673.7,2672.5,11.9349]
[1645374028909,1.77862449,2673.7,2672.5,11.9349]
[1645374029110,1.77862449,2673.7,2672.5,12.81858495]
[1645374029111,0.88500517,2673.3,2672.5,12.81858495]
[1645374029311,0.1894899,2673.7,2672.5,2.06718495]
[1645374029510,1.58946046,2673.6,2672.5,2.06718495]
[1645374029965,1.58946046,2673.6,2672.5,2.36718495]
[1645374030361,1.00124906,2673.4,2672.5,2.36718495]
[1645374030658,1.00124906,2673.4,2672.5,1.18368495]
[1645374031960,1.00124906,2673.4,2672.5,0.3]
[1645374032161,1.58956575,2673.3,2672.5,0.3]
[1645374032364,1.58956575,2673.3,2672.3,2.53579]
[1645374032560,1.58956575,2673.3,2672.8,0.00234855]
[1645374033361,1.58956575,2673.3,2672.5,0.9439038]
[1645374033607,1.58956575,2673.3,2672.9,0.0023485]
[1645374034206,1.00124906,2673.4,2672.9,0.0023485]
[1645374034406,1.58953729,2673.3,2672.9,0.0023485]
[1645374034607,1.58953729,2673.3,2672.5,1.2439038]
[1645374034811,1.58953729,2673.3,2673.0,0.00234844]
[1645374035207,1.00124906,2673.4,2673.0,0.00234844]
[1645374035807,1.09462303,2672.9,2672.4,1.00830704]
[1645374036009,3.5,2673.6,2673.1,0.00234841]
[1645374036208,1.58951995,2673.5,2673.1,0.00234841]
[1645374036411,1.58951995,2673.4,2673.1,0.00234841]
[1645374036608,3.5,2673.6,2673.1,0.00234841]
[1645374036809,1.5895206,2673.5,2673.1,0.00234841]
[1645374037010,1.5895206,2673.5,2672.4,1.00830704]
[1645374037209,1.5895206,2673.5,2673.2,0.00234833]
[1645374037210,1.10592622,2673.3,2673.2,0.00234833]
[1645374038158,1.10592622,2673.3,2672.4,1.00830704]
[1645374038558,1.10592622,2673.3,2672.7,0.00939496]
[1645374038761,5.0,2673.0,2672.7,0.00939496]
[1645374038963,5.0,2673.0,2672.0,0.5]
[1645374038964,0.01788162,2672.6,2672.0,0.5]
[1645374039161,1.5897883,2672.5,2672.0,0.5]
[1645374039360,1.5897883,2672.5,2671.6,7.38]
[1645374039759,0.91074867,2672.0,2671.6,7.38]
[1645374040357,11.72488162,2672.6,2671.6,7.38]
[1645374040560,12.27849113,2672.6,2671.6,7.38]
[1645374040762,0.75849113,2672.6,2671.7,0.00215394]
[1645374040962,5.09009602,2672.5,2671.7,0.00215394]
[1645374041203,1.59009602,2672.4,2671.7,0.00215394]
[1645374041402,1.02593383,2672.3,2671.7,0.00215394]
[1645374041806,1.02593383,2672.3,2671.6,7.38]
[1645374042004,1.02593383,2672.3,2671.9,0.00215385]
[1645374042405,3.5,2672.2,2671.9,0.00215385]
[1645374042607,1.59027448,2672.1,2671.9,0.00215385]
[1645374043005,1.59027448,2672.1,2671.6,6.58234839]
[1645374043310,1.59027448,2672.1,2671.9,0.00215385]
[1645374044307,3.687,2672.2,2671.2,1.0]
[1645374044711,3.637,2672.2,2671.9,0.00223637]
[1645374044966,0.137,2672.2,2671.9,0.00223637]
[1645374045162,0.137,2672.2,2670.8,4.12504114]